fUST/lending_fUST_20250315
["ID","MTS","AMOUNT","RATE_DAILY","PERIOD"]
[356170943,1742001045173,-420.0,8.929e-05,2]
[356170944,1742001045183,-151.915075,9.041e-05,2]
[356170945,1742001045193,-500.0,9.041e-05,2]
[356170946,1742001045203,-500.0,9.041e-05,2]
[356170947,1742001045213,-500.0,9.041e-05,2]
[356170948,1742001045223,-500.0,9.041e-05,2]
[356170949,1742001045234,-500.0,9.041e-05,2]
[356170950,1742001045244,-500.0,9.041e-05,2]
[356170951,1742001045254,-528.00161556,9.041e-05,2]
[356170952,1742001045264,-500.0,9.041e-05,2]
[356170953,1742001045275,-500.0,9.041e-05,2]
[356170954,1742001045285,-500.0,9.041e-05,2]
[356170955,1742001045295,-636.61,9.041e-05,2]
[356170956,1742001045305,-500.0,9.041e-05,2]
[356170957,1742001045315,-500.0,9.041e-05,2]
[356170958,1742001045325,-500.0,9.041e-05,2]
[356170959,1742001045335,-657.53,9.041e-05,2]
[356170960,1742001045345,-500.0,9.041e-05,2]
[356170961,1742001045355,-591.37,9.041e-05,2]
[356170962,1742001045368,-332.83831149,9.041e-05,2]
[356170963,1742001045378,-644.39,9.041e-05,2]
[356170964,1742001045388,-311.94722418,9.041e-05,2]
[356170965,1742001045399,-500.0,9.041e-05,2]
[356170966,1742001045408,-1404.98,9.041e-05,2]
[356170967,1742001045418,-500.0,9.041e-05,2]
[356170968,1742001045428,-500.0,9.041e-05,2]
[356170969,1742001045439,-500.0,9.041e-05,2]
[356170970,1742001045454,-500.0,9.041e-05,2]
[356170971,1742001045464,-500.0,9.041e-05,2]
[356170972,1742001045474,-500.0,9.041e-05,2]
[356170973,1742001045486,-500.0,9.041e-05,2]
[356170974,1742001045497,-500.0,9.041e-05,2]
[356170975,1742001045507,-500.0,9.041e-05,2]
[356170976,1742001045517,-500.0,9.041e-05,2]
[356170977,1742001045530,-500.0,9.041e-05,2]
[356170978,1742001045545,-500.0,9.041e-05,2]
[356170979,1742001045555,-676.97,9.041e-05,2]
[356170980,1742001045566,-500.0,9.041e-05,2]
[356170981,1742001045575,-500.0,9.041e-05,2]
[356170982,1742001045585,-500.0,9.041e-05,2]
[356170983,1742001045595,-500.0,9.041e-05,2]
[356170984,1742001045604,-500.0,9.041e-05,2]
[356170985,1742001045614,-500.0,9.041e-05,2]
[356170986,1742001045624,-500.0,9.041e-05,2]
[356170987,1742001045634,-500.0,9.041e-05,2]
[356170988,1742001045644,-666.43,9.041e-05,2]
[356170989,1742001045654,-500.0,9.041e-05,2]
[356170990,1742001045664,-851.26,9.041e-05,2]
[356170991,1742001045674,-500.0,9.041e-05,2]
[356170992,1742001045683,-500.0,9.041e-05,2]
[356170993,1742001045693,-500.0,9.041e-05,2]
[356170994,1742001045703,-500.0,9.041e-05,2]
[356170995,1742001045713,-500.0,9.041e-05,2]
[356170996,1742001045722,-500.06,9.041e-05,2]
[356170997,1742001045732,-928.23,9.041e-05,2]
[356170998,1742001045742,-500.0,9.041e-05,2]
[356170999,1742001045751,-535.6,9.041e-05,2]
[356171000,1742001045761,-500.0,9.041e-05,2]
[356171001,1742001045770,-500.0,9.041e-05,2]
[356171002,1742001045780,-7374.63,9.041e-05,2]
[356171003,1742001045790,-500.0,9.041e-05,2]
[356171004,1742001045800,-500.0,9.041e-05,2]
[356171005,1742001045810,-2903.1,9.041e-05,2]
[356171006,1742001045819,-927.69,9.041e-05,2]
[356171007,1742001045829,-594.84957208,9.041e-05,2]
[356171008,1742001045839,-500.0,9.041e-05,2]
[356171009,1742001045848,-500.0,9.041e-05,2]
[356171010,1742001045857,-319.95687582,9.041e-05,2]
[356171011,1742001045867,-500.0,9.041e-05,2]
[356171012,1742001045877,-7263.12,9.041e-05,2]
[356171013,1742001045887,-500.0,9.041e-05,2]
[356171014,1742001045896,-4200.8,9.041e-05,2]
[356171015,1742001045906,-3090.78,9.041e-05,2]
[356171016,1742001045915,-500.0,9.041e-05,2]
[356171017,1742001045925,-500.0,9.041e-05,2]
[356171018,1742001045934,-259.23236995,9.041e-05,2]
[356171024,1742001046345,-500.0,8.219e-05,2]
[356171025,1742001046358,-500.0,8.493e-05,2]
[356171026,1742001046372,-564.80926295,8.767e-05,2]
[356171027,1742001046385,-5.38330576,9.041e-05,2]
[356171072,1742001549477,3355.7769107,7.316e-05,2]
[356171075,1742001900149,211.17723832,7.917e-05,2]
[356171079,1742001997134,-242.18547723,8.017e-05,2]
[356171149,1742002232619,-300.0,8.017e-05,2]
[356171151,1742002232629,-269.18043383,8.018e-05,2]
[356171153,1742002232639,-300.57295886,8.018e-05,2]
[356171154,1742002232648,-500.0,8.018e-05,2]
[356171155,1742002232658,-500.0,8.018e-05,2]
[356171156,1742002232667,-500.0,8.018e-05,2]
[356171157,1742002232676,-500.0,8.018e-05,2]
[356171158,1742002232687,-500.0,8.018e-05,2]
[356171159,1742002232696,-423.55402802,8.018e-05,2]
[356171160,1742002232706,-10091.01797459,8.019e-05,2]
[356171161,1742002232750,-266.53666222,8.019e-05,2]
[356171162,1742002232763,-27227.50383687,8.019e-05,2]
[356171163,1742002232807,-26234.91898004,8.019e-05,2]
[356171165,1742002232819,-13511.68395256,8.019e-05,2]
[356171178,1742002238529,-11557.3599256,8.019e-05,2]
[356171179,1742002238541,-634.90314799,8.019e-05,2]
[356171180,1742002238552,-4410.39522008,8.019e-05,2]
[356171181,1742002238564,-3663.05917605,8.019e-05,2]
[356171182,1742002238575,-22054.34433053,8.019e-05,2]
[356171183,1742002238621,-18374.87776374,8.019e-05,2]
[356171186,1742002238632,-7965.06971346,8.019e-05,2]
[356171188,1742002238644,-3782.50501255,8.019e-05,2]
[356171190,1742002238655,-6970.87960091,8.019e-05,2]
[356171232,1742002242321,500.0,7.262e-05,2]
[356171260,1742002243585,-5469.04701445,8.019e-05,2]
[356171269,1742002246769,-851.62567513,8.019e-05,2]
[356171275,1742002288603,3000.0,8e-05,2]
[356171292,1742003373541,500.0,7.262e-05,2]
[356171350,1742003438627,-219.97416194,8.118e-05,2]
[356171351,1742003438636,-254.40013405,8.118e-05,2]
[356171352,1742003438646,-424.91801624,8.118e-05,2]
[356171353,1742003438656,-300.0,8.118e-05,2]
[356171354,1742003438666,-48979.18212396,8.119e-05,2]
[356171355,1742003438677,-305.3939357,8.119e-05,2]
[356171414,1742003443706,-5219.35159664,8.119e-05,2]
[356171466,1742003446767,-4325.0,8.119e-05,2]
[356171468,1742003446779,-2823.66708858,8.119e-05,2]
[356171568,1742004345149,-178.08009384,8.018e-05,2]
[356171569,1742004345173,-153.98191336,8.018e-05,2]
[356171570,1742004345197,-111.3267539,8.018e-05,2]
[356171571,1742004452797,500.0,7.313e-05,2]
[356171795,1742004642918,-150.0,8.017e-05,2]
[356171796,1742004642927,-300.0,8.018e-05,2]
[356171797,1742004642937,-8254.45,8.019e-05,2]
[356171798,1742004642948,-12862.18265546,8.019e-05,2]
[356171822,1742004645902,-11498.2692764,8.019e-05,2]
[356171824,1742004645914,-11000.0,8.019e-05,2]
[356171826,1742005080130,6142.4416633,7.397e-05,2]
[356171827,1742005186677,222000.0,7.919e-05,2]
[356171829,1742005329406,222000.0,7.919e-05,2]
[356171830,1742005511505,500.0,7.253e-05,2]
[356171832,1742005611104,-242.18547723,8.118e-05,2]
[356171834,1742005624115,-300.0,8.118e-05,2]
[356171835,1742005624141,-222000.0,8.119e-05,2]
[356171836,1742005624166,-500.0,8.193e-05,2]
[356171837,1742005624191,-500.0,8.193e-05,2]
[356171838,1742005624216,-500.0,8.193e-05,2]
[356171839,1742005624240,-500.0,8.193e-05,2]
[356171840,1742005624264,-500.0,8.193e-05,2]
[356171841,1742005624288,-500.0,8.193e-05,2]
[356171842,1742005624312,-500.0,8.2e-05,7]
[356171843,1742005624337,-500.0,8.2e-05,7]
[356171844,1742005624361,-500.0,8.2e-05,7]
[356171845,1742005624385,-500.0,8.2e-05,7]
[356171846,1742005624410,-500.0,8.2e-05,7]
[356171847,1742005624434,-396.0,8.2e-05,7]
[356171862,1742005809465,1656.02757335,8e-05,2]
[356171863,1742005818249,166.9400542,8e-05,2]
[356171930,1742005832500,-411.40248818,8.018e-05,2]
[356171931,1742005832510,-217.23357661,8.018e-05,2]
[356171933,1742005832520,-500.0,8.018e-05,2]
[356171935,1742005832530,-200.61529623,8.018e-05,2]
[356171936,1742005832539,-300.0,8.018e-05,2]
[356171938,1742005832548,-14973.78421898,8.019e-05,2]
[356171984,1742005838029,-500.0,8.018e-05,2]
[356171985,1742005838039,-71.15089487,8.018e-05,2]
[356172025,1742005904557,16761.3,8e-05,2]
[356172026,1742005966132,1934.0695192,7.232e-05,2]
[356172027,1742006123569,24900.0,7.397e-05,2]
[356172028,1742006160076,1828.9833975,7.27e-05,2]
[356172030,1742006523688,31215.5364072,7.233e-05,2]
[356172031,1742006856304,1000.0,8e-05,2]
[356172086,1742007032432,-171.92693969,8.018e-05,2]
[356172088,1742007032443,-347.76722917,8.018e-05,2]
[356172090,1742007032456,-300.0,8.018e-05,2]
[356172092,1742007032468,-24526.07941036,8.019e-05,2]
[356172248,1742007040482,-12061.59727128,8.019e-05,2]
[356172249,1742007040494,-4400.0,8.019e-05,2]
[356172250,1742007040535,-100123.91618009,8.019e-05,2]
[356172261,1742007043307,-12715.85172606,8.019e-05,2]
[356172269,1742007046214,-4221.45,8.019e-05,2]
[356172270,1742007048321,222000.0,7.919e-05,2]
[356172271,1742007234355,471.4902451,7.276e-05,2]
[356172272,1742007275870,24900.0,7.397e-05,2]
[356172273,1742007496103,2500.0,0.00014001,30]
[356172274,1742007522196,7500.009,8e-05,2]
[356172275,1742007958135,-300.0,8.117e-05,2]
[356172276,1742007958157,-143.3887611,8.118e-05,2]
[356172298,1742008232452,-300.0,8.117e-05,2]
[356172299,1742008232463,-116.66666667,8.118e-05,2]
[356172330,1742008238245,-27.92631395,8.118e-05,2]
[356172332,1742008238255,-152.06350362,8.118e-05,2]
[356172334,1742008238264,-490.43070737,8.118e-05,2]
[356172336,1742008238274,-500.0,8.118e-05,2]
[356172338,1742008238283,-493.43908484,8.118e-05,2]
[356172340,1742008238293,-193.30149515,8.118e-05,2]
[356172342,1742008238302,-35.06063157,8.118e-05,2]
[356172346,1742008238405,-2021.93936843,8.118e-05,2]
[356172347,1742008238415,-6434.66063157,8.119e-05,2]
[356172401,1742008240743,-1698.13572157,8.119e-05,2]
[356172403,1742008243469,-642.81311,8.119e-05,2]
[356172404,1742008243481,-302.23434211,8.119e-05,2]
[356172405,1742008243526,-1687.5,8.119e-05,2]
[356172406,1742008243581,-4534.2255733,8.119e-05,2]
[356172444,1742008277137,24900.0,7.397e-05,2]
[356172445,1742008370154,1239.6050184,7.266e-05,2]
[356173111,1742009195151,-201.58721921,8.017e-05,2]
[356173112,1742009195174,-40.59825802,8.017e-05,2]
[356173279,1742009438430,-113.38365534,8.017e-05,2]
[356173280,1742009438440,-338.73507476,8.017e-05,2]
[356173281,1742009438450,-382.87919305,8.017e-05,2]
[356173282,1742009438459,-300.0,8.017e-05,2]
[356173283,1742009438469,-2720.2992663,8.018e-05,2]
[356173284,1742009438482,-3345.74423928,8.018e-05,2]
[356173285,1742009438494,-6608.7482034,8.018e-05,2]
[356173286,1742009438506,-1647.34529331,8.018e-05,2]
[356173287,1742009439313,-57392.69685771,8.018e-05,2]
[356173288,1742009439338,-42607.30314229,8.019e-05,2]
[356173312,1742009446749,-101987.3245241,8.019e-05,2]
[356173313,1742009448644,-77405.37233361,8.019e-05,2]
[356173314,1742009448668,-400.0,8.178e-05,2]
[356173315,1742009448692,-192.7494171,8.178e-05,2]
[356173316,1742009448715,-419.50275511,8.198e-05,2]
[356173317,1742009448738,-192.74941709,8.199e-05,2]
[356173318,1742009448760,-151.0,8.214e-05,2]
[356173319,1742009448783,-500.0,8.218e-05,2]
[356173320,1742009448805,-510.28804452,8.219e-05,2]
[356173321,1742009448828,-500.0,8.219e-05,2]
[356173322,1742009448850,-516.80933868,8.219e-05,2]
[356173323,1742009448871,-500.0,8.219e-05,2]
[356173324,1742009448894,-500.0,8.219e-05,2]
[356173325,1742009448916,-500.0,8.219e-05,2]
[356173326,1742009448939,-515.21786959,8.219e-05,2]
[356173327,1742009448961,-512.99121458,8.219e-05,2]
[356173328,1742009448983,-507.7217269,8.219e-05,2]
[356173329,1742009449006,-500.0,8.219e-05,2]
[356173330,1742009449029,-531.82515525,8.219e-05,2]
[356173331,1742009449052,-517.95821115,8.219e-05,2]
[356173332,1742009449075,-517.92208359,8.219e-05,2]
[356173333,1742009449098,-515.19491998,8.219e-05,2]
[356173334,1742009449121,-514.93883071,8.219e-05,2]
[356173335,1742009449145,-516.10223427,8.219e-05,2]
[356173336,1742009449169,-513.00323285,8.219e-05,2]
[356173337,1742009449192,-500.0,8.219e-05,2]
[356173338,1742009449215,-500.0,8.219e-05,2]
[356173339,1742009449239,-520.0478018,8.219e-05,2]
[356173340,1742009449261,-508.86204067,8.219e-05,2]
[356173341,1742009449283,-516.08505454,8.219e-05,2]
[356173342,1742009449305,-519.27632368,8.219e-05,2]
[356173343,1742009449329,-500.0,8.219e-05,2]
[356173344,1742009449352,-250.55418687,8.219e-05,2]
[356173345,1742009449375,-151.0,8.219e-05,2]
[356173346,1742009449397,-151.0,8.219e-05,2]
[356173347,1742009449419,-151.0,8.219e-05,2]
[356173348,1742009449442,-151.0,8.219e-05,2]
[356173349,1742009449465,-151.0,8.219e-05,2]
[356173350,1742009449487,-151.0,8.219e-05,2]
[356173351,1742009449510,-151.0,8.219e-05,2]
[356173352,1742009449533,-151.0,8.219e-05,2]
[356173353,1742009449556,-151.0,8.219e-05,2]
[356173354,1742009449579,-562.77,8.219e-05,2]
[356173355,1742009449601,-518.08541772,8.219e-05,2]
[356173356,1742009449625,-588.46,8.219e-05,2]
[356173357,1742009449648,-500.0,8.219e-05,2]
[356173358,1742009449866,-500.0,8.219e-05,2]
[356173359,1742009449889,-500.0,8.219e-05,2]
[356173360,1742009449912,-537.0,8.219e-05,2]
[356173361,1742009449935,-516.30846666,8.219e-05,2]
[356173362,1742009449958,-514.98916234,8.219e-05,2]
[356173363,1742009449983,-500.0,8.219e-05,2]
[356173364,1742009450004,-501.66913251,8.219e-05,2]
[356173365,1742009450027,-1135.54562823,8.219e-05,2]
[356173366,1742009568418,222000.0,7.919e-05,2]
[356173367,1742009641680,15510.6711159,7.397e-05,2]
[356173400,1742010631871,-237.11455233,8.118e-05,2]
[356173401,1742010631881,-255.86779262,8.118e-05,2]
[356173411,1742010637608,-44.13220738,8.118e-05,2]
[356173412,1742010637618,-4278.90490572,8.119e-05,2]
[356173425,1742010639937,-345.24916212,8.119e-05,2]
[356173465,1742011409448,2449.0,8e-05,2]
[356173466,1742011496247,40000.0,8e-05,2]
[356173467,1742011555143,-300.0,8.017e-05,2]
[356173468,1742011555166,-143.3887611,8.018e-05,2]
[356173502,1742011832023,-300.0,8.017e-05,2]
[356173503,1742011832033,-218.69628942,8.018e-05,2]
[356173504,1742011832042,-627.96618694,8.018e-05,2]
[356173505,1742011832051,-500.0,8.018e-05,2]
[356173506,1742011832060,-500.0,8.018e-05,2]
[356173507,1742011832070,-500.6608381,8.018e-05,2]
[356173508,1742011832079,-500.0,8.018e-05,2]
[356173509,1742011832089,-500.0,8.018e-05,2]
[356173510,1742011832098,-500.0,8.018e-05,2]
[356173511,1742011832107,-12178.66050327,8.019e-05,2]
[356173563,1742011837769,-3378.78992834,8.019e-05,2]
[356173564,1742011837882,-350.4527043,8.019e-05,2]
[356173565,1742011837894,-3075.94034887,8.019e-05,2]
[356173575,1742011840206,-32703.62838371,8.019e-05,2]
[356173612,1742012057975,26984.56317279,8e-05,2]
[356173613,1742012065201,25000.0,8e-05,2]
[356173615,1742012377061,222000.0,7.919e-05,2]
[356173618,1742012815276,-242.18547723,8.117e-05,2]
[356173619,1742012839216,1287.98,8e-05,2]
[356173624,1742012923882,280.0,0.00014001,30]
[356173636,1742012990398,3862.0,8e-05,2]
[356173680,1742013032285,-300.0,8.117e-05,2]
[356173681,1742013032296,-161.7647608,8.118e-05,2]
[356173682,1742013032308,-407.55929575,8.118e-05,2]
[356173683,1742013032317,-500.0,8.118e-05,2]
[356173684,1742013032327,-500.0,8.118e-05,2]
[356173685,1742013032337,-530.13216762,8.118e-05,2]
[356173686,1742013032346,-500.0,8.118e-05,2]
[356173687,1742013032356,-500.0,8.118e-05,2]
[356173688,1742013032378,-500.0,8.118e-05,2]
[356173689,1742013032390,-23452.38615091,8.119e-05,2]
[356173690,1742013032403,-1084.74651482,8.119e-05,2]
[356173691,1742013032415,-8397.15341748,8.119e-05,2]
[356173692,1742013032486,-1273.32038068,8.119e-05,2]
[356173718,1742013038103,-2282.53026762,8.119e-05,2]
[356173774,1742013040699,-4549.91186261,8.119e-05,2]
[356173862,1742013326714,752.18,8e-05,2]
[356173863,1742013652523,1080.0,0.00014001,30]
[356173864,1742013870142,750.0,0.00014001,30]
[356173920,1742014232549,-500.0,8.018e-05,2]
[356173922,1742014232559,-443.81412119,8.018e-05,2]
[356173924,1742014232568,-425.3980041,8.018e-05,2]
[356173926,1742014232579,-164.74936917,8.018e-05,2]
[356173928,1742014232589,-500.0,8.018e-05,2]
[356173930,1742014232605,-439.55665348,8.018e-05,2]
[356173933,1742014232622,-38039.37945194,8.019e-05,2]
[356173936,1742014232635,-278.80680054,8.019e-05,2]
[356174013,1742014238315,-15988.34901759,8.019e-05,2]
[356174055,1742014246432,-452.07000005,8.019e-05,2]
[356174069,1742014529439,1787.78,0.00015357,120]
[356174070,1742015121111,1995.8228224,7.919e-05,2]
[356174071,1742015121142,220004.1771776,7.919e-05,2]
[356174072,1742015123769,-215.98067192,8.018e-05,2]
[356174073,1742015123792,-300.0,8.018e-05,2]
[356174074,1742015123814,-158.42148622,8.118e-05,2]
[356174075,1742015123838,-181.19194373,8.118e-05,2]
[356174076,1742015123859,-10530.22950417,8.193e-05,2]
[356174077,1742015123880,-500.0,8.193e-05,2]
[356174078,1742015137405,-151.0,8.214e-05,2]
[356174079,1742015137428,-152.934214,8.219e-05,2]
[356174080,1742015137450,-500.0,8.219e-05,2]
[356174081,1742015137475,-500.0,8.219e-05,2]
[356174082,1742015137497,-386.54217996,8.219e-05,2]
[356174083,1742015143133,-113.45782004,8.219e-05,2]
[356174084,1742015143153,-329.93094106,8.219e-05,2]
[356174115,1742015432733,-450.1170764,8.118e-05,2]
[356174116,1742015432743,-500.0,8.118e-05,2]
[356174117,1742015432752,-297.77860287,8.118e-05,2]
[356174118,1742015432762,-159.52765709,8.118e-05,2]
[356174119,1742015432771,-165.08195348,8.118e-05,2]
[356174120,1742015432780,-370.41498882,8.119e-05,2]
[356174121,1742015432792,-492.42605792,8.119e-05,2]
[356174122,1742015432804,-30905.53736588,8.119e-05,2]
[356174281,1742015446733,-11.41582117,8.119e-05,2]
[356174288,1742015884099,302.93,8e-05,2]
[356174289,1742015944178,1787.61859122,8e-05,2]
[356174291,1742016410109,-242.18547723,8.118e-05,2]
[356174463,1742016638639,-567.4998892,8.018e-05,2]
[356174466,1742016638649,-358.63696783,8.018e-05,2]
[356174469,1742016638658,-300.0,8.018e-05,2]
[356174472,1742016638668,-11994.84198804,8.019e-05,2]
[356174772,1742016641489,-63905.05122562,8.019e-05,2]
[356174833,1742016682319,722.4398874,7.397e-05,2]
[356174912,1742017837818,-300.0,8.018e-05,2]
[356174914,1742017837828,-146100.10678634,8.019e-05,2]
[356174916,1742017837838,-500.0,8.193e-05,2]
[356174918,1742017837847,-500.94843506,8.193e-05,2]
[356174920,1742017837857,-502.52111332,8.193e-05,2]
[356174922,1742017837867,-504.02315586,8.193e-05,2]
[356174924,1742017837876,-192.72514757,8.193e-05,2]
[356174927,1742017837885,-503.48120784,8.193e-05,2]
[356174928,1742017837895,-500.0,8.193e-05,2]
[356174930,1742017837904,-417.82734123,8.193e-05,2]
[356174933,1742017837914,-181.19194373,8.214e-05,2]
[356174934,1742017837924,-151.0,8.214e-05,2]
[356174935,1742017837933,-1000.21793,8.218e-05,2]
[356174936,1742017837943,-150.71,8.218e-05,2]
[356174937,1742017837954,-2269.0,8.218e-05,2]
[356174938,1742017837963,-541.179,8.218e-05,2]
[356174939,1742017837973,-1914.0,8.218e-05,2]
[356174940,1742017837982,-399.0,8.218e-05,2]
[356174941,1742017837993,-182.156,8.218e-05,2]
[356174942,1742017838003,-500.0,8.219e-05,2]
[356174943,1742017838012,-518.69814423,8.219e-05,2]
[356174945,1742017838021,-500.0,8.219e-05,2]
[356174947,1742017838031,-519.00405983,8.219e-05,2]
[356174948,1742017838040,-500.0,8.219e-05,2]
[356174949,1742017838049,-516.26356215,8.219e-05,2]
[356174950,1742017838058,-500.0,8.219e-05,2]
[356174951,1742017838068,-508.40758702,8.219e-05,2]
[356174952,1742017838077,-514.49153298,8.219e-05,2]
[356174953,1742017838086,-500.0,8.219e-05,2]
[356174954,1742017838095,-511.89159921,8.219e-05,2]
[356174955,1742017838104,-512.62603949,8.219e-05,2]
[356174956,1742017838114,-383.39496702,8.219e-05,2]
[356174957,1742017838124,-500.0,8.219e-05,2]
[356174958,1742017838134,-513.22583393,8.219e-05,2]
[356174959,1742017838144,-515.93042696,8.219e-05,2]
[356174960,1742017838154,-500.0,8.219e-05,2]
[356174961,1742017838164,-507.67178131,8.219e-05,2]
[356174962,1742017838175,-500.0,8.219e-05,2]
[356174963,1742017838184,-500.0,8.219e-05,2]
[356174964,1742017838194,-502.38725828,8.219e-05,2]
[356174965,1742017838203,-512.83146242,8.219e-05,2]
[356174966,1742017838213,-466.36415838,8.219e-05,2]
[356174967,1742017838222,-387.72352584,8.219e-05,2]
[356174984,1742017845960,-112.27647416,8.219e-05,2]
[356174985,1742017845970,-500.0,8.219e-05,2]
[356174986,1742017845979,-506.04816058,8.219e-05,2]
[356174987,1742017845989,-507.02923017,8.219e-05,2]
[356174988,1742017845999,-515.28251614,8.219e-05,2]
[356174989,1742017846008,-510.91367257,8.219e-05,2]
[356174990,1742017846018,-511.15398269,8.219e-05,2]
[356174991,1742017846027,-500.0,8.219e-05,2]
[356174992,1742017846037,-509.64186237,8.219e-05,2]
[356174993,1742017846046,-500.0,8.219e-05,2]
[356174994,1742017846056,-581.24,8.219e-05,2]
[356174995,1742017846065,-500.0,8.219e-05,2]
[356174996,1742017846075,-503.84263935,8.219e-05,2]
[356174997,1742017846084,-500.0,8.219e-05,2]
[356174998,1742017846094,-500.0,8.219e-05,2]
[356174999,1742017846103,-500.0,8.219e-05,2]
[356175000,1742017846113,-501.77460576,8.219e-05,2]
[356175001,1742017846122,-500.0,8.219e-05,2]
[356175002,1742017846132,-509.57589901,8.219e-05,2]
[356175003,1742017846141,-500.0,8.219e-05,2]
[356175004,1742017846151,-509.36458789,8.219e-05,2]
[356175005,1742017846161,-500.0,8.219e-05,2]
[356175006,1742017846171,-500.0,8.219e-05,2]
[356175007,1742017846181,-509.68670108,8.219e-05,2]
[356175008,1742017846191,-500.0,8.219e-05,2]
[356175009,1742017846200,-500.0,8.219e-05,2]
[356175010,1742017846210,-500.0,8.219e-05,2]
[356175011,1742017846220,-511.03533044,8.219e-05,2]
[356175012,1742017846230,-500.0,8.219e-05,2]
[356175013,1742017846240,-501.49194263,8.219e-05,2]
[356175014,1742017846251,-500.0,8.219e-05,2]
[356175015,1742017846260,-500.0,8.219e-05,2]
[356175016,1742017846270,-500.0,8.219e-05,2]
[356175017,1742017846279,-500.0,8.219e-05,2]
[356175018,1742017846289,-151.0,8.219e-05,2]
[356175019,1742017846298,-159.97,8.219e-05,2]
[356175020,1742017846308,-500.0,8.219e-05,2]
[356175021,1742017846318,-500.0,8.219e-05,2]
[356175022,1742017846327,-503.40771367,8.219e-05,2]
[356175023,1742017846338,-501.13575939,8.219e-05,2]
[356175024,1742017846347,-510.51289173,8.219e-05,2]
[356175025,1742017846356,-500.0,8.219e-05,2]
[356175026,1742017846366,-629.98680164,8.219e-05,2]
[356175027,1742017846378,-502.50845741,8.219e-05,2]
[356175028,1742017846387,-500.0,8.219e-05,2]
[356175029,1742017846396,-500.0,8.219e-05,2]
[356175030,1742017846406,-514.77508295,8.219e-05,2]
[356175031,1742017846416,-506.07984992,8.219e-05,2]
[356175032,1742017846425,-506.42755053,8.219e-05,2]
[356175033,1742017846436,-500.0,8.219e-05,2]
[356175034,1742017846446,-504.92621902,8.219e-05,2]
[356175035,1742017846456,-500.0,8.219e-05,2]
[356175036,1742017846466,-563.95,8.219e-05,2]
[356175037,1742017846476,-500.0,8.219e-05,2]
[356175038,1742017846485,-514.00543412,8.219e-05,2]
[356175039,1742017846495,-508.64614602,8.219e-05,2]
[356175040,1742017846505,-500.0,8.219e-05,2]
[356175041,1742017846515,-571.11,8.219e-05,2]
[356175042,1742017846524,-500.0,8.219e-05,2]
[356175043,1742017846534,-500.0,8.219e-05,2]
[356175044,1742017846543,-500.0,8.219e-05,2]
[356175045,1742017846552,-514.62,8.219e-05,2]
[356175046,1742017846562,-509.644104,8.219e-05,2]
[356175047,1742017846572,-500.0,8.219e-05,2]
[356175048,1742017846582,-1125.56,8.219e-05,2]
[356175049,1742017846592,-503.40520428,8.219e-05,2]
[356175050,1742017846602,-500.0,8.219e-05,2]
[356175051,1742017846611,-512.10483059,8.219e-05,2]
[356175052,1742017846620,-500.0,8.219e-05,2]
[356175053,1742017846630,-500.0,8.219e-05,2]
[356175054,1742017846640,-511.36537485,8.219e-05,2]
[356175055,1742017846649,-500.07070011,8.219e-05,2]
[356175056,1742017846659,-508.30556524,8.219e-05,2]
[356175057,1742017846668,-510.8194251,8.219e-05,2]
[356175058,1742017846678,-500.0,8.219e-05,2]
[356175059,1742017846687,-500.13481158,8.219e-05,2]
[356175060,1742017846698,-500.0,8.219e-05,2]
[356175061,1742017846707,-500.0,8.219e-05,2]
[356175062,1742017846717,-500.0,8.219e-05,2]
[356175063,1742017846726,-500.0,8.219e-05,2]
[356175064,1742017846735,-566.21,8.219e-05,2]
[356175065,1742017846745,-500.0,8.219e-05,2]
[356175066,1742017846755,-500.0,8.219e-05,2]
[356175067,1742017846764,-500.0,8.219e-05,2]
[356175068,1742017846778,-500.0,8.219e-05,2]
[356175069,1742017846787,-508.86137719,8.219e-05,2]
[356175070,1742017846797,-500.0,8.219e-05,2]
[356175071,1742017846807,-164.560011,8.219e-05,2]
[356175072,1742017846818,-510.79915959,8.219e-05,2]
[356175073,1742017846828,-500.0,8.219e-05,2]
[356175074,1742017846838,-500.0,8.219e-05,2]
[356175075,1742017846849,-500.0,8.219e-05,2]
[356175076,1742017846858,-557.4,8.219e-05,2]
[356175077,1742017846868,-513.9578643,8.219e-05,2]
[356175078,1742017846877,-517.89952097,8.219e-05,2]
[356175079,1742017846887,-500.0,8.219e-05,2]
[356175080,1742017846896,-500.0,8.219e-05,2]
[356175081,1742017846906,-500.0,8.219e-05,2]